fUST/lending_fUST_20260304
["ID","MTS","AMOUNT","RATE_DAILY","PERIOD"]
[407593771,1772560241203,-500.0,0.00010958,2]
[407593773,1772560241212,-2794.85,0.00010958,2]
[407593775,1772560241222,-692.35,0.00010958,2]
[407593777,1772560241232,-500.0,0.00010958,2]
[407593779,1772560241242,-500.0,0.00010958,2]
[407593781,1772560241252,-500.0,0.00010958,2]
[407593783,1772560241261,-500.0,0.00010958,2]
[407593785,1772560241270,-500.67,0.00010958,2]
[407593787,1772560241279,-500.0,0.00010958,2]
[407593789,1772560241288,-500.0,0.00010958,2]
[407593791,1772560241298,-500.0,0.00010958,2]
[407593793,1772560241308,-500.0,0.00010958,2]
[407593795,1772560241317,-1483.66,0.00010958,2]
[407593797,1772560241327,-1532.52,0.00010958,2]
[407593799,1772560241338,-500.0,0.00010958,2]
[407593801,1772560241347,-553.22,0.00010958,2]
[407593803,1772560241357,-833.79,0.00010958,2]
[407593805,1772560241366,-500.0,0.00010958,2]
[407593807,1772560241376,-500.0,0.00010958,2]
[407593809,1772560241385,-500.0,0.00010958,2]
[407593811,1772560241394,-292.86638895,0.00010958,2]
[407593813,1772560241403,-500.0,0.00010958,2]
[407593815,1772560241412,-679.6,0.00010958,2]
[407593817,1772560241421,-500.0,0.00010958,2]
[407593819,1772560241431,-500.0,0.00010958,2]
[407593821,1772560241440,-1475.7,0.00010958,2]
[407593823,1772560241450,-650.11,0.00010958,2]
[407593825,1772560241459,-500.0,0.00010958,2]
[407593827,1772560241468,-500.0,0.00010958,2]
[407593829,1772560241478,-501.82626737,0.00010958,2]
[407593830,1772560241487,-478.74085099,0.00010958,2]
[407593832,1772560241497,-697.35,0.00010958,2]
[407593834,1772560241507,-6783.61,0.00010958,2]
[407593836,1772560241518,-500.0,0.00010958,2]
[407593838,1772560241528,-500.0,0.00010958,2]
[407593840,1772560241537,-654.83,0.00010958,2]
[407593842,1772560241546,-1109.47,0.00010958,2]
[407593844,1772560241556,-500.0,0.00010958,2]
[407593846,1772560241566,-500.0,0.00010958,2]
[407593848,1772560241576,-500.0,0.00010958,2]
[407593850,1772560241585,-500.0,0.00010958,2]
[407593852,1772560241596,-575.75,0.00010958,2]
[407593854,1772560241606,-500.0,0.00010958,2]
[407593856,1772560241615,-7713.96,0.00010958,2]
[407593858,1772560241624,-500.0,0.00010958,2]
[407593860,1772560241634,-500.0,0.00010958,2]
[407593862,1772560241644,-622.75,0.00010958,2]
[407593864,1772560241653,-500.0,0.00010958,2]
[407593867,1772560241666,-1242.79,0.00010958,2]
[407593869,1772560241676,-500.0,0.00010958,2]
[407593871,1772560241686,-1126.49,0.00010958,2]
[407593873,1772560241695,-500.0,0.00010958,2]
[407593875,1772560241705,-633.56,0.00010958,2]
[407593876,1772560241715,-500.0,0.00010958,2]
[407593878,1772560241725,-500.0,0.00010958,2]
[407593880,1772560241735,-1116.35,0.00010958,2]
[407593882,1772560241744,-500.0,0.00010958,2]
[407593884,1772560241754,-612.03,0.00010958,2]
[407593886,1772560241763,-500.0,0.00010958,2]
[407593888,1772560241772,-500.0,0.00010958,2]
[407593890,1772560241781,-500.0,0.00010958,2]
[407593892,1772560241790,-500.0,0.00010958,2]
[407593894,1772560241800,-1922.31,0.00010958,2]
[407593896,1772560241810,-500.0,0.00010958,2]
[407593898,1772560241819,-692.81,0.00010958,2]
[407593900,1772560241828,-500.0,0.00010958,2]
[407593902,1772560241838,-500.0,0.00010958,2]
[407593904,1772560241847,-820.92,0.00010958,2]
[407593906,1772560241856,-500.0,0.00010958,2]
[407593908,1772560241865,-1835.69,0.00010958,2]
[407593910,1772560241874,-1049.99,0.00010958,2]
[407593912,1772560241883,-3189.89,0.00010958,2]
[407593913,1772560241894,-1394.56,0.00010958,2]
[407593915,1772560241903,-5346.25,0.00010958,2]
[407593917,1772560241918,-500.0,0.00010958,2]
[407593919,1772560241927,-500.0,0.00010958,2]
[407593921,1772560241936,-500.0,0.00010958,2]
[407593923,1772560241947,-1293.72,0.00010958,2]
[407593925,1772560241960,-539.93,0.00010958,2]
[407593927,1772560241970,-670.9,0.00010958,2]
[407593929,1772560241980,-500.0,0.00010958,2]
[407593931,1772560241991,-699.21,0.00010958,2]
[407593933,1772560241999,-1897.3,0.00010958,2]
[407593935,1772560242008,-1096.58,0.00010958,2]
[407593937,1772560242017,-1126.17,0.00010958,2]
[407593939,1772560242027,-500.0,0.00010958,2]
[407593941,1772560242036,-3496.82,0.00010958,2]
[407593943,1772560242046,-500.0,0.00010958,2]
[407593945,1772560242055,-1000.0,0.00010958,2]
[407593947,1772560242066,-569.63,0.00010958,2]
[407593949,1772560242075,-500.0,0.00010958,2]
[407593951,1772560242085,-1374.87,0.00010958,2]
[407593953,1772560242095,-500.0,0.00010958,2]
[407593956,1772560242105,-1711.43,0.00010958,2]
[407593957,1772560242114,-1834.41,0.00010958,2]
[407593959,1772560242124,-500.0,0.00010958,2]
[407593962,1772560242133,-538.02135247,0.00010958,2]
[407593964,1772560242143,-2013.8,0.00010958,2]
[407593965,1772560242152,-1306.75,0.00010958,2]
[407593966,1772560242162,-500.0,0.00010958,2]
[407593967,1772560242172,-500.0,0.00010958,2]
[407593968,1772560242181,-500.0,0.00010958,2]
[407593969,1772560242190,-500.0,0.00010958,2]
[407593970,1772560242200,-2317.99,0.00010958,2]
[407593972,1772560242209,-1885.94,0.00010958,2]
[407593974,1772560242219,-500.0,0.00010958,2]
[407593976,1772560242227,-500.0,0.00010958,2]
[407593978,1772560242236,-500.0,0.00010958,2]
[407593980,1772560242246,-500.0,0.00010958,2]
[407593982,1772560242255,-662.51,0.00010958,2]
[407593984,1772560242264,-844.55,0.00010958,2]
[407593986,1772560242273,-500.0,0.00010958,2]
[407593988,1772560242282,-1056.57,0.00010958,2]
[407593990,1772560242291,-500.0,0.00010958,2]
[407593992,1772560242300,-500.0,0.00010958,2]
[407593994,1772560242308,-500.0,0.00010958,2]
[407593996,1772560242317,-564.38,0.00010958,2]
[407593998,1772560242326,-2199.79,0.00010958,2]
[407594000,1772560242336,-612.7,0.00010958,2]
[407594002,1772560242345,-500.0,0.00010958,2]
[407594004,1772560242354,-829.11,0.00010958,2]
[407594006,1772560242363,-1158.59,0.00010958,2]
[407594008,1772560242373,-500.0,0.00010958,2]
[407594010,1772560242382,-5184.84,0.00010958,2]
[407594012,1772560242391,-500.0,0.00010958,2]
[407594014,1772560242401,-500.0,0.00010958,2]
[407594016,1772560242410,-500.0,0.00010958,2]
[407594017,1772560242419,-500.0,0.00010958,2]
[407594020,1772560242430,-1510.11,0.00010958,2]
[407594022,1772560242440,-583.42,0.00010958,2]
[407594024,1772560242448,-1304.47,0.00010958,2]
[407594026,1772560242459,-500.0,0.00010958,2]
[407594028,1772560242469,-734.01,0.00010958,2]
[407594030,1772560242478,-500.0,0.00010958,2]
[407594032,1772560242487,-500.0,0.00010958,2]
[407594034,1772560242497,-732.42,0.00010958,2]
[407594036,1772560242506,-1264.56,0.00010958,2]
[407594038,1772560242515,-500.0,0.00010958,2]
[407594040,1772560242525,-500.0,0.00010958,2]
[407594042,1772560242539,-500.0,0.00010958,2]
[407594044,1772560242548,-862.79,0.00010958,2]
[407594046,1772560242557,-559.2,0.00010958,2]
[407594048,1772560242567,-500.0,0.00010958,2]
[407594050,1772560242576,-688.06,0.00010958,2]
[407594052,1772560242585,-1183.21,0.00010958,2]
[407594054,1772560242595,-500.0,0.00010958,2]
[407594056,1772560242604,-305.09154423,0.00010958,2]
[407594058,1772560242613,-176.977309,0.00010958,2]
[407594060,1772560242622,-176.977309,0.00010958,2]
[407594062,1772560242632,-2992.81,0.00010958,2]
[407594064,1772560242641,-176.977309,0.00010958,2]
[407594066,1772560242650,-176.977309,0.00010958,2]
[407594068,1772560242660,-500.0,0.00010958,2]
[407594070,1772560242669,-785.16,0.00010958,2]
[407594072,1772560242679,-2068.87,0.00010958,2]
[407594074,1772560242689,-500.0,0.00010958,2]
[407594076,1772560242698,-500.0,0.00010958,2]
[407594078,1772560242708,-1504.24,0.00010958,2]
[407594080,1772560242717,-500.0,0.00010958,2]
[407594082,1772560242726,-522.98,0.00010958,2]
[407594084,1772560242735,-2727.59,0.00010958,2]
[407594086,1772560242744,-500.0,0.00010958,2]
[407594088,1772560242754,-512.39,0.00010958,2]
[407594090,1772560242763,-500.0,0.00010958,2]
[407594092,1772560242772,-1640.95,0.00010958,2]
[407594095,1772560242782,-665.7,0.00010958,2]
[407594097,1772560242791,-1338.4,0.00010958,2]
[407594099,1772560242800,-500.0,0.00010958,2]
[407594101,1772560242809,-1104.89,0.00010958,2]
[407594103,1772560242819,-3662.27,0.00010958,2]
[407594105,1772560242828,-500.0,0.00010958,2]
[407594108,1772560242838,-4212.18,0.00010958,2]
[407594110,1772560242848,-1444.23,0.00010958,2]
[407594111,1772560242856,-500.0,0.00010958,2]
[407594114,1772560242867,-500.0,0.00010958,2]
[407594116,1772560242879,-500.0,0.00010958,2]
[407594118,1772560242889,-500.0,0.00010958,2]
[407594120,1772560242900,-500.0,0.00010958,2]
[407594122,1772560242910,-698.52,0.00010958,2]
[407594124,1772560242919,-2003.03,0.00010958,2]
[407594126,1772560242928,-3376.14,0.00010958,2]
[407594128,1772560242939,-902.63,0.00010958,2]
[407594130,1772560242953,-500.0,0.00010958,2]
[407594132,1772560242964,-1023.67,0.00010958,2]
[407594134,1772560242974,-1590.78,0.00010958,2]
[407594136,1772560242984,-500.0,0.00010958,2]
[407594138,1772560242995,-500.0,0.00010958,2]
[407594140,1772560243005,-500.0,0.00010958,2]
[407594142,1772560243015,-759.31,0.00010958,2]
[407594144,1772560243024,-520.15,0.00010958,2]
[407594146,1772560243034,-500.0,0.00010958,2]
[407594148,1772560243043,-500.0,0.00010958,2]
[407594150,1772560243053,-500.0,0.00010958,2]
[407594152,1772560243063,-500.0,0.00010958,2]
[407594154,1772560243072,-500.0,0.00010958,2]
[407594156,1772560243082,-1313.95,0.00010958,2]
[407594158,1772560243092,-6866.74,0.00010958,2]
[407594160,1772560243101,-2202.43,0.00010958,2]
[407594162,1772560243111,-500.0,0.00010958,2]
[407594164,1772560243120,-500.0,0.00010958,2]
[407594166,1772560243129,-500.0,0.00010958,2]
[407594168,1772560243138,-151.0,0.00010958,2]
[407594170,1772560243148,-151.0,0.00010958,2]
[407594172,1772560243156,-646.28,0.00010958,2]
[407594174,1772560243166,-2063.71,0.00010958,2]
[407594176,1772560243175,-2139.14,0.00010958,2]
[407594178,1772560243185,-500.0,0.00010958,2]
[407594180,1772560243194,-500.0,0.00010958,2]
[407594182,1772560243203,-1325.56,0.00010958,2]
[407594184,1772560243212,-500.0,0.00010958,2]
[407594186,1772560243221,-500.0,0.00010958,2]
[407594188,1772560243230,-500.0,0.00010958,2]
[407594190,1772560243239,-1929.81,0.00010958,2]
[407594192,1772560243248,-500.0,0.00010958,2]
[407594194,1772560243258,-500.0,0.00010958,2]
[407594196,1772560243267,-500.0,0.00010958,2]
[407594198,1772560243275,-500.0,0.00010958,2]
[407594200,1772560243284,-500.0,0.00010958,2]
[407594202,1772560243294,-1062.91,0.00010958,2]
[407594204,1772560243303,-1686.6,0.00010958,2]
[407594206,1772560243312,-500.0,0.00010958,2]
[407594208,1772560243321,-500.0,0.00010958,2]
[407594210,1772560243331,-500.0,0.00010958,2]
[407594212,1772560243340,-500.0,0.00010958,2]
[407594214,1772560243349,-500.0,0.00010958,2]
[407594216,1772560243358,-600.66,0.00010958,2]
[407594218,1772560243367,-500.0,0.00010958,2]
[407594220,1772560243376,-500.0,0.00010958,2]
[407594222,1772560243386,-500.0,0.00010958,2]
[407594224,1772560243395,-1126.58,0.00010958,2]
[407594226,1772560243404,-500.0,0.00010958,2]
[407594228,1772560243414,-500.0,0.00010958,2]
[407594230,1772560243423,-897.48,0.00010958,2]
[407594232,1772560243433,-580.08,0.00010958,2]
[407594234,1772560243442,-1551.21,0.00010958,2]
[407594236,1772560243451,-247.57672368,0.00010958,2]
[407594238,1772560243462,-500.0,0.00010958,2]
[407594240,1772560243472,-985.47,0.00010958,2]
[407594242,1772560243482,-500.0,0.00010958,2]
[407594244,1772560243491,-2120.53,0.00010958,2]
[407594246,1772560243500,-691.52,0.00010958,2]
[407594248,1772560243511,-6486.16,0.00010958,2]
[407594250,1772560243520,-684.23,0.00010958,2]
[407594252,1772560243530,-1370.38,0.00010958,2]
[407594254,1772560243539,-500.0,0.00010958,2]
[407594256,1772560243548,-692.44,0.00010958,2]
[407594258,1772560243557,-1049.99,0.00010958,2]
[407594260,1772560243566,-500.0,0.00010958,2]
[407594262,1772560243575,-1070.45,0.00010958,2]
[407594264,1772560243584,-500.0,0.00010958,2]
[407594266,1772560243593,-2292.67,0.00010958,2]
[407594268,1772560243602,-500.0,0.00010958,2]
[407594270,1772560243611,-866.86,0.00010958,2]
[407594272,1772560243621,-500.0,0.00010958,2]
[407594274,1772560243630,-500.0,0.00010958,2]
[407594276,1772560243640,-1212.29,0.00010958,2]
[407594278,1772560243650,-500.0,0.00010958,2]
[407594280,1772560243660,-1542.92,0.00010958,2]
[407594282,1772560243669,-387.35532298,0.00010958,2]
[407594284,1772560243678,-500.0,0.00010958,2]
[407594286,1772560243687,-500.0,0.00010958,2]
[407594288,1772560243696,-1521.07,0.00010958,2]
[407594290,1772560243706,-1273.64,0.00010958,2]
[407594292,1772560243714,-500.0,0.00010958,2]
[407594294,1772560243724,-500.0,0.00010958,2]
[407594296,1772560243734,-500.0,0.00010958,2]
[407594298,1772560243744,-7940.2,0.00010958,2]
[407594300,1772560243753,-500.0,0.00010958,2]
[407594302,1772560243762,-1151.35,0.00010958,2]
[407594304,1772560243771,-1375.46,0.00010958,2]
[407594306,1772560243780,-500.0,0.00010958,2]
[407594308,1772560243789,-500.0,0.00010958,2]
[407594310,1772560243799,-533.78,0.00010958,2]
[407594312,1772560243808,-1072.03,0.00010958,2]
[407594314,1772560243818,-500.0,0.00010958,2]
[407594316,1772560243827,-1476.44,0.00010958,2]
[407594318,1772560243837,-500.0,0.00010958,2]
[407594320,1772560243846,-500.0,0.00010958,2]
[407594322,1772560243855,-723.72,0.00010958,2]
[407594324,1772560243864,-500.0,0.00010958,2]
[407594326,1772560243874,-503.62098526,0.00010958,2]
[407594328,1772560243883,-819.05,0.00010958,2]
[407594330,1772560243893,-511.99,0.00010958,2]
[407594332,1772560243901,-500.0,0.00010958,2]
[407594334,1772560243910,-500.0,0.00010958,2]
[407594336,1772560243919,-500.0,0.00010958,2]
[407594338,1772560243929,-500.0,0.00010958,2]
[407594340,1772560243938,-500.0,0.00010958,2]
[407594342,1772560243948,-500.0,0.00010958,2]
[407594344,1772560243960,-1178.37,0.00010958,2]
[407594346,1772560243970,-951.96,0.00010958,2]
[407594348,1772560243980,-500.0,0.00010958,2]
[407594350,1772560243990,-1217.95,0.00010958,2]
[407594352,1772560244000,-1011.08,0.00010958,2]
[407594354,1772560244010,-500.0,0.00010958,2]
[407594356,1772560244019,-5055.38,0.00010958,2]
[407594358,1772560244030,-581.11,0.00010958,2]
[407594360,1772560244040,-4374.97,0.00010958,2]
[407594363,1772560244050,-2572.81,0.00010958,2]
[407594364,1772560244061,-500.0,0.00010958,2]
[407594366,1772560244070,-2655.46,0.00010958,2]
[407594368,1772560244079,-500.0,0.00010958,2]
[407594371,1772560244092,-556.86,0.00010958,2]
[407594373,1772560244102,-500.0,0.00010958,2]
[407594375,1772560244111,-881.64,0.00010958,2]
[407594377,1772560244120,-531.99,0.00010958,2]
[407594379,1772560244130,-500.0,0.00010958,2]
[407594381,1772560244140,-500.0,0.00010958,2]
[407594383,1772560244149,-3344.59,0.00010958,2]
[407594385,1772560244158,-500.0,0.00010958,2]
[407594387,1772560244167,-1870.64,0.00010958,2]
[407594390,1772560244176,-500.0,0.00010958,2]
[407594392,1772560244186,-890.27,0.00010958,2]
[407594394,1772560244195,-3094.43,0.00010958,2]
[407594396,1772560244204,-500.0,0.00010958,2]
[407594398,1772560244212,-709.12,0.00010958,2]
[407594400,1772560244220,-500.0,0.00010958,2]
[407594402,1772560244229,-500.0,0.00010958,2]
[407594404,1772560244238,-924.54,0.00010958,2]
[407594406,1772560244246,-500.0,0.00010958,2]
[407594408,1772560244255,-503.11,0.00010958,2]
[407594410,1772560244263,-510.71,0.00010958,2]
[407594412,1772560244272,-10024.57,0.00010958,2]
[407594414,1772560244281,-500.0,0.00010958,2]
[407594416,1772560244289,-502.8438901,0.00010958,2]
[407594418,1772560244299,-319.50255033,0.00010958,2]
[407594420,1772560244308,-500.0,0.00010958,2]
[407594422,1772560244317,-500.0,0.00010958,2]
[407594424,1772560244326,-162.52751334,0.00010958,2]
[407594426,1772560244335,-500.0,0.00010958,2]
[407594428,1772560244346,-693.54,0.00010958,2]
[407594430,1772560244355,-500.0,0.00010958,2]
[407594432,1772560244365,-944.06,0.00010958,2]
[407594434,1772560244375,-1519.5,0.00010958,2]
[407594436,1772560244384,-500.0,0.00010958,2]
[407594438,1772560244394,-500.0,0.00010958,2]
[407594440,1772560244404,-270.75354254,0.00010958,2]
[407594468,1772560244413,-626.32624455,0.00010958,2]
[407594471,1772560244652,-500.0,0.00010958,2]
[407594473,1772560244661,-17614.95,0.00010958,2]
[407594475,1772560244671,-4606.45,0.00010958,2]
[407594477,1772560244680,-500.0,0.00010958,2]
[407594479,1772560244689,-509.61,0.00010958,2]
[407594481,1772560244699,-500.0,0.00010958,2]
[407594483,1772560244709,-500.0,0.00010958,2]
[407594485,1772560244719,-500.0,0.00010958,2]
[407594487,1772560244728,-916.36,0.00010958,2]
[407594489,1772560244737,-2055.49,0.00010958,2]
[407594491,1772560244746,-500.0,0.00010958,2]
[407594493,1772560244755,-500.0,0.00010958,2]
[407594495,1772560244764,-500.0,0.00010958,2]
[407594497,1772560244773,-500.0,0.00010958,2]
[407594499,1772560244783,-7809.26,0.00010958,2]
[407594501,1772560244791,-500.0,0.00010958,2]
[407594503,1772560244800,-4226.41,0.00010958,2]
[407594505,1772560244809,-1563.77,0.00010958,2]
[407594507,1772560244818,-500.0,0.00010958,2]
[407594509,1772560244827,-605.65,0.00010958,2]
[407594511,1772560244836,-500.0,0.00010958,2]
[407594513,1772560244846,-500.0,0.00010958,2]
[407594515,1772560244856,-1964.92,0.00010958,2]
[407594517,1772560244865,-500.0,0.00010958,2]
[407594519,1772560244873,-1587.03,0.00010958,2]
[407594521,1772560244884,-1372.67,0.00010958,2]
[407594523,1772560244894,-500.0,0.00010958,2]
[407594525,1772560244904,-500.0,0.00010958,2]
[407594527,1772560244913,-500.0,0.00010958,2]
[407594529,1772560244923,-500.0,0.00010958,2]
[407594531,1772560244933,-1249.37,0.00010958,2]
[407594533,1772560244943,-500.0,0.00010958,2]
[407594535,1772560244956,-500.0,0.00010958,2]
[407594537,1772560244966,-550.39,0.00010958,2]
[407594539,1772560244975,-3835.26,0.00010958,2]
[407594541,1772560244985,-519.24,0.00010958,2]
[407594543,1772560244995,-517.0840942,0.00010958,2]
[407594545,1772560245005,-4629.24,0.00010958,2]
[407594547,1772560245015,-17688.04,0.00010958,2]
[407594549,1772560245026,-500.0,0.00010958,2]
[407594552,1772560245036,-2060.88,0.00010958,2]
[407594554,1772560245045,-699.39,0.00010958,2]
[407594556,1772560245054,-782.07,0.00010958,2]
[407594558,1772560245064,-2117.33,0.00010958,2]
[407594560,1772560245073,-328.47998528,0.00010958,2]
[407594562,1772560245082,-561.01,0.00010958,2]
[407594564,1772560245092,-1196.7,0.00010958,2]
[407594566,1772560245101,-500.0,0.00010958,2]
[407594568,1772560245111,-375.40569746,0.00010958,2]
[407594570,1772560245121,-500.0,0.00010958,2]
[407594572,1772560245130,-3119.44,0.00010958,2]
[407594574,1772560245140,-913.0,0.00010958,2]
[407594576,1772560245149,-500.0,0.00010958,2]
[407594578,1772560245159,-585.98483088,0.00010958,2]
[407594580,1772560245168,-500.0,0.00010958,2]
[407594582,1772560245177,-500.0,0.00010958,2]
[407594584,1772560245187,-584.52,0.00010958,2]
[407594586,1772560245197,-500.0,0.00010958,2]
[407594588,1772560245206,-500.0,0.00010958,2]
[407594590,1772560245216,-500.0,0.00010958,2]
[407594592,1772560245226,-1667.75,0.00010958,2]
[407594594,1772560245236,-500.0,0.00010958,2]
[407594596,1772560245246,-16750.02,0.00010958,2]
[407594598,1772560245255,-500.0,0.00010958,2]
[407594600,1772560245265,-500.0,0.00010958,2]
[407594602,1772560245275,-1259.95,0.00010958,2]
[407594604,1772560245285,-500.0,0.00010958,2]
[407594606,1772560245295,-500.0,0.00010958,2]
[407594608,1772560245304,-1186.25,0.00010958,2]
[407594610,1772560245315,-4392.59,0.00010958,2]
[407594612,1772560245324,-3102.5,0.00010958,2]
[407594614,1772560245334,-500.0,0.00010958,2]
[407594616,1772560245346,-502.34,0.00010958,2]
[407594618,1772560245356,-500.0,0.00010958,2]
[407594620,1772560245366,-500.0,0.00010958,2]
[407594622,1772560245375,-7236.19,0.00010958,2]
[407594624,1772560245384,-500.0,0.00010958,2]
[407594626,1772560245394,-500.0,0.00010958,2]
[407594628,1772560245403,-500.0,0.00010958,2]
[407594630,1772560245413,-858.51,0.00010958,2]
[407594632,1772560245422,-500.0,0.00010958,2]
[407594634,1772560245431,-1297.09413795,0.00010958,2]
[407594733,1772560246370,-587.0,0.00010848,2]
[407594735,1772560246382,-967.61586635,0.00010848,2]
[407594828,1772560247326,-2371.73802082,0.00010848,2]
[407594830,1772560247338,-495.95616219,0.00010848,2]
[407594832,1772560247352,-920.02586205,0.00010958,2]
[407594835,1772560247362,-124.83510376,0.00010958,2]
[407594837,1772560247376,-501.16489624,0.00010958,2]
[407594839,1772560247386,-500.0,0.00010958,2]
[407594841,1772560247396,-500.0,0.00010958,2]
[407594843,1772560247405,-389.85713826,0.00010958,2]
[407594845,1772560247417,-3038.16286174,0.00010958,2]
[407594847,1772560247427,-1905.08,0.00010958,2]
[407594849,1772560247437,-1910.98,0.00010958,2]
[407594851,1772560247446,-500.0,0.00010958,2]
[407594853,1772560247455,-870.07,0.00010958,2]
[407594854,1772560247464,-900.09,0.00010958,2]
[407594856,1772560247473,-500.0,0.00010958,2]
[407594858,1772560247482,-500.0,0.00010958,2]
[407594860,1772560247492,-500.0,0.00010958,2]
[407594862,1772560247502,-500.0,0.00010958,2]
[407594864,1772560247511,-500.0,0.00010958,2]
[407594866,1772560247521,-616.14183708,0.00010958,2]
[407594868,1772560247530,-3864.73,0.00010958,2]
[407594870,1772560247539,-500.0,0.00010958,2]
[407594872,1772560247548,-2106.21,0.00010958,2]
[407594874,1772560247560,-500.0,0.00010958,2]
[407594876,1772560247569,-567.68,0.00010958,2]
[407594878,1772560247579,-500.0,0.00010958,2]
[407594880,1772560247588,-500.0,0.00010958,2]
[407594882,1772560247598,-1074.47825118,0.00010958,2]
[407594884,1772560247611,-398.30861033,0.00010958,2]
[407594888,1772560247642,-300.0,0.00010958,2]
[407594911,1772560248050,-729.37313849,0.00010958,2]
[407594913,1772560248061,-501.11658367,0.00010958,2]
[407594915,1772560248071,-500.0,0.00010958,2]
[407594917,1772560248081,-500.0,0.00010958,2]
[407594919,1772560248093,-885.76,0.00010958,2]
[407594921,1772560248103,-500.0,0.00010958,2]
[407594924,1772560248113,-500.0,0.00010958,2]
[407594926,1772560248123,-1736.92,0.00010958,2]
[407594927,1772560248132,-500.0,0.00010958,2]
[407594930,1772560248143,-1045.0,0.00010958,2]
[407594932,1772560248153,-500.0,0.00010958,2]
[407594934,1772560248163,-242.99206994,0.00010958,2]
[407594938,1772560248198,-257.00793006,0.00010958,2]
[407594940,1772560248207,-215.74763496,0.00010958,2]
[407594942,1772560248216,-500.0,0.00010958,2]
[407594944,1772560248227,-500.0,0.00010958,2]
[407594946,1772560248236,-795.45,0.00010958,2]
[407594948,1772560248246,-504.59855889,0.00010958,2]
[407594950,1772560248257,-500.44065058,0.00010958,2]
[407594952,1772560248267,-4471.54,0.00010958,2]
[407594954,1772560248277,-500.0,0.00010958,2]
[407594957,1772560248287,-533.61,0.00010958,2]
[407594959,1772560248297,-355.13642053,0.00010958,2]
[407594961,1772560248309,-144.86357947,0.00010958,2]
[407594963,1772560248319,-532.09797901,0.00010958,2]
[407594965,1772560248329,-119.41842432,0.00010958,2]
[407595109,1772560393453,3000.0,0.000109,30]
[407595110,1772560393954,3000.0,0.0001091,30]
[407595111,1772560394344,3000.0,0.0001092,30]
[407595112,1772560395203,3000.0,0.0001093,30]
[407595113,1772560395348,3000.0,0.0001094,30]
[407595114,1772560395721,3000.0,0.0001095,30]
[407595115,1772560396497,5476.054997,0.0001096,30]
[407595116,1772560796912,300.0,0.000157,120]
[407595117,1772560844207,-259.07534584,0.0001011,2]
[407595118,1772560844222,-39.34490424,0.0001011,2]
[407595119,1772560844234,-259.07534584,0.0001011,2]
[407595120,1772561011991,239.69,0.000157,120]
[407595170,1772561432197,-555.0,9.623e-05,2]
[407595173,1772561432216,-3504.5866443,9.623e-05,2]
[407595175,1772561432229,-1017.46089067,9.695e-05,5]
[407595176,1772561432241,-300.0,9.736e-05,2]
[407595178,1772561432252,-1200.0,9.736e-05,2]
[407595180,1772561432263,-3595.91994083,9.737e-05,2]
[407595341,1772561438470,-500.0,9.736e-05,2]
[407595342,1772561438480,-500.0,9.736e-05,2]
[407595343,1772561438489,-500.0,9.736e-05,2]
[407595344,1772561438500,-311.5,9.736e-05,2]